[Event "Titled Tuesday Blitz April 05 Late 2022"]
[White "Taichman, Ori"]
[Black "Sanchez Alvares, Kelvin Antonio"]
[WhiteFideId "2804069"]
[BlackFideId "3906680"]
[WhiteElo "2663"]
[BlackElo "2495"]
[Result "1/2-1/2"]
[Round "04"]
[TimeControl "180+1"]
[Date "2022.04.06"]
[WhiteClock "0:00:10"]
[BlackClock "0:00:07"]

1. e4 {[%clk 0:03:00]}  e5 {[%clk 0:02:59]} 2. d4 {[%clk 0:02:59]}  exd4 {[%clk 0:02:58]} 3. Qxd4 {[%clk 0:03:00]}  Nc6 {[%clk 0:02:58]} 4. Qe3 {[%clk 0:03:01]}  Nf6 {[%clk 0:02:58]} 5. Nc3 {[%clk 0:03:01]}  Bb4 {[%clk 0:02:58]} 6. Bd2 {[%clk 0:03:02]}  O-O {[%clk 0:02:57]} 7. O-O-O {[%clk 0:03:01]}  Re8 {[%clk 0:02:57]} 8. Qg3 {[%clk 0:03:01]}  Rxe4 {[%clk 0:02:56]} 9. a3 {[%clk 0:03:01]}  Rg4 {[%clk 0:02:40]} 10. Qe3 {[%clk 0:02:58]}  Bd6 {[%clk 0:02:38]} 11. h3 {[%clk 0:02:56]}  Bf4 {[%clk 0:02:37]} 12. Qe1 {[%clk 0:02:48]}  Bxd2+ {[%clk 0:02:36]} 13. Rxd2 {[%clk 0:02:49]}  Rd4 {[%clk 0:02:35]} 14. Bd3 {[%clk 0:02:49]}  d6 {[%clk 0:02:30]} 15. Nf3 {[%clk 0:02:45]}  Rf4 {[%clk 0:02:15]} 16. Qe3 {[%clk 0:02:37]}  Nh5 {[%clk 0:02:15]} 17. g4 {[%clk 0:02:35]}  Rxf3 {[%clk 0:02:11]} 18. Qxf3 {[%clk 0:02:36]}  Ne5 {[%clk 0:02:11]} 19. Qe3 {[%clk 0:02:19]}  Nf6 {[%clk 0:02:08]} 20. f4 {[%clk 0:02:18]}  Nxd3+ {[%clk 0:02:06]} 21. Rxd3 {[%clk 0:02:14]}  Bd7 {[%clk 0:02:06]} 22. Re1 {[%clk 0:02:12]}  Bc6 {[%clk 0:02:05]} 23. g5 {[%clk 0:02:06]}  Nd7 {[%clk 0:02:03]} 24. Qe7 {[%clk 0:02:05]}  Nc5 {[%clk 0:02:01]} 25. Rde3 {[%clk 0:02:03]}  Qxe7 {[%clk 0:01:42]} 26. Rxe7 {[%clk 0:02:04]}  Ne6 {[%clk 0:01:42]} 27. f5 {[%clk 0:01:54]}  Kf8 {[%clk 0:01:42]} 28. f6 {[%clk 0:01:55]}  Nxg5 {[%clk 0:01:35]} 29. fxg7+ {[%clk 0:01:51]}  Kxg7 {[%clk 0:01:35]} 30. Rxc7 {[%clk 0:01:52]}  Nxh3 {[%clk 0:01:26]} 31. Ne4 {[%clk 0:01:52]}  Re8 {[%clk 0:01:19]} 32. Re3 {[%clk 0:01:35]}  Rxe4 {[%clk 0:01:06]} 33. Rg3+ {[%clk 0:01:28]}  Ng5 {[%clk 0:00:59]} 34. Rxg5+ {[%clk 0:01:28]}  Kf6 {[%clk 0:00:59]} 35. Rg1 {[%clk 0:01:24]}  Rf4 {[%clk 0:00:51]} 36. Rc8 {[%clk 0:01:19]}  h5 {[%clk 0:00:50]} 37. Rh8 {[%clk 0:01:20]}  h4 {[%clk 0:00:50]} 38. Rh6+ {[%clk 0:01:20]}  Kf5 {[%clk 0:00:48]} 39. Rg7 {[%clk 0:01:10]}  f6 {[%clk 0:00:45]} 40. Rgh7 {[%clk 0:01:11]}  Rf1+ {[%clk 0:00:34]} 41. Kd2 {[%clk 0:01:11]}  Rf2+ {[%clk 0:00:34]} 42. Kc3 {[%clk 0:01:03]}  Be4 {[%clk 0:00:32]} 43. Rxh4 {[%clk 0:00:54]}  Rxc2+ {[%clk 0:00:31]} 44. Kb3 {[%clk 0:00:55]}  Re2 {[%clk 0:00:26]} 45. R7h5+ {[%clk 0:00:52]}  Ke6 {[%clk 0:00:25]} 46. Rf4 {[%clk 0:00:50]}  f5 {[%clk 0:00:24]} 47. Rh7 {[%clk 0:00:45]}  Ke5 {[%clk 0:00:23]} 48. Rfh4 {[%clk 0:00:45]}  a5 {[%clk 0:00:19]} 49. Re7+ {[%clk 0:00:39]}  Kd4 {[%clk 0:00:18]} 50. Rxb7 {[%clk 0:00:37]}  Kc5 {[%clk 0:00:15]} 51. Rc7+ {[%clk 0:00:34]}  Kb6 {[%clk 0:00:15]} 52. Rg7 {[%clk 0:00:32]}  Re3+ {[%clk 0:00:10]} 53. Ka2 {[%clk 0:00:29]}  a4 {[%clk 0:00:09]} 54. Rg1 {[%clk 0:00:28]}  Bc2 {[%clk 0:00:07]} 55. Rc1 {[%clk 0:00:22]}  Bb3+ {[%clk 0:00:06]} 56. Kb1 {[%clk 0:00:22]}  Re4 {[%clk 0:00:05]} 57. Rh6 {[%clk 0:00:18]}  Rd4 {[%clk 0:00:05]} 58. Rf1 {[%clk 0:00:18]}  Bc4 {[%clk 0:00:03]} 59. Re1 {[%clk 0:00:14]}  Kc5 {[%clk 0:00:03]} 60. Rf6 {[%clk 0:00:14]}  Bd3+ {[%clk 0:00:04]} 61. Kc1 {[%clk 0:00:15]}  Be4 {[%clk 0:00:04]} 62. Re3 {[%clk 0:00:11]}  Kd5 {[%clk 0:00:04]} 63. Rf8 {[%clk 0:00:08]}  Ke5 {[%clk 0:00:04]} 64. Rh3 {[%clk 0:00:05]}  Rc4+ {[%clk 0:00:03]} 65. Rc3 {[%clk 0:00:05]}  Rd4 {[%clk 0:00:03]} 66. Re8+ {[%clk 0:00:05]}  Kf4 {[%clk 0:00:03]} 67. Rf8 {[%clk 0:00:05]}  d5 {[%clk 0:00:03]} 68. Rh8 {[%clk 0:00:04]}  Ke5 {[%clk 0:00:02]} 69. Rh5 {[%clk 0:00:04]}  Kd6 {[%clk 0:00:02]} 70. Rh6+ {[%clk 0:00:04]}  Ke5 {[%clk 0:00:03]} 71. Rcc6 {[%clk 0:00:04]}  Rc4+ {[%clk 0:00:03]} 72. Rxc4 {[%clk 0:00:04]}  dxc4 {[%clk 0:00:04]} 73. Kd2 {[%clk 0:00:04]}  Kd4 {[%clk 0:00:04]} 74. Rd6+ {[%clk 0:00:04]}  Kc5 {[%clk 0:00:04]} 75. Rd8 {[%clk 0:00:04]}  Bd3 {[%clk 0:00:04]} 76. Rf8 {[%clk 0:00:04]}  Be4 {[%clk 0:00:04]} 77. Kc3 {[%clk 0:00:05]}  Bd3 {[%clk 0:00:03]} 78. Rf6 {[%clk 0:00:05]}  Kd5 {[%clk 0:00:03]} 79. Ra6 {[%clk 0:00:06]}  f4 {[%clk 0:00:04]} 80. Rxa4 {[%clk 0:00:06]}  f3 {[%clk 0:00:04]} 81. Ra5+ {[%clk 0:00:06]}  Ke4 {[%clk 0:00:05]} 82. Ra7 {[%clk 0:00:06]}  f2 {[%clk 0:00:05]} 83. Rf7 {[%clk 0:00:07]}  f1=Q {[%clk 0:00:05]} 84. Rxf1 {[%clk 0:00:07]}  Bxf1 {[%clk 0:00:06]} 85. a4 {[%clk 0:00:08]}  Kd5 {[%clk 0:00:06]} 86. a5 {[%clk 0:00:08]}  Kc5 {[%clk 0:00:07]} 87. a6 {[%clk 0:00:09]}  Kb6 {[%clk 0:00:07]} 88. b3 {[%clk 0:00:10]}  cxb3 {[%clk 0:00:07]} 89. Kxb3 {[%clk 0:00:10]}  Kxa6 {[%clk 0:00:07]} 1/2-1/2


[Site "https://www.chess.com"]

[Event "Titled Tuesday Blitz April 05 Late 2022"]
[White "Tanenbaum, Zachary"]
[Black "Kozin, Yuri"]
[WhiteFideId "2060850"]
[BlackFideId "4129920"]
[WhiteElo "2717"]
[BlackElo "2538"]
[Result "1-0"]
[Round "04"]
[TimeControl "180+1"]
[Date "2022.04.06"]
[WhiteClock "0:01:14"]
[BlackClock "0:00:03"]

1. e4 {[%clk 0:03:00]}  c5 {[%clk 0:02:59]} 2. Nf3 {[%clk 0:03:00]}  e6 {[%clk 0:03:00]} 3. d4 {[%clk 0:03:01]}  cxd4 {[%clk 0:03:01]} 4. Nxd4 {[%clk 0:03:01]}  a6 {[%clk 0:03:01]} 5. Bd3 {[%clk 0:03:02]}  Qc7 {[%clk 0:03:02]} 6. O-O {[%clk 0:03:02]}  Nc6 {[%clk 0:03:02]} 7. Be3 {[%clk 0:03:01]}  Nf6 {[%clk 0:02:59]} 8. Nc3 {[%clk 0:03:01]}  Ne5 {[%clk 0:02:50]} 9. h3 {[%clk 0:03:01]}  Nc4 {[%clk 0:02:43]} 10. Bxc4 {[%clk 0:03:01]}  Qxc4 {[%clk 0:02:44]} 11. Qd3 {[%clk 0:02:45]}  Qc7 {[%clk 0:02:42]} 12. f4 {[%clk 0:02:45]}  d6 {[%clk 0:02:42]} 13. Rae1 {[%clk 0:02:16]}  Be7 {[%clk 0:02:37]} 14. e5 {[%clk 0:02:14]}  dxe5 {[%clk 0:02:20]} 15. fxe5 {[%clk 0:02:14]}  Qxe5 {[%clk 0:02:16]} 16. Nf5 {[%clk 0:02:12]}  exf5 {[%clk 0:01:43]} 17. Bb6 {[%clk 0:02:05]}  Ne4 {[%clk 0:01:29]} 18. Nxe4 {[%clk 0:02:04]}  O-O {[%clk 0:01:19]} 19. Bd4 {[%clk 0:01:46]}  fxe4 {[%clk 0:01:17]} 20. Rxe4 {[%clk 0:01:28]}  Qg5 {[%clk 0:01:10]} 21. Re5 {[%clk 0:01:23]}  Qh4 {[%clk 0:00:48]} 22. Re4 {[%clk 0:01:20]}  Qg5 {[%clk 0:00:30]} 23. h4 {[%clk 0:01:19]}  Qd5 {[%clk 0:00:17]} 24. Rxe7 {[%clk 0:01:18]}  Be6 {[%clk 0:00:17]} 25. Re1 {[%clk 0:01:12]}  Rfe8 {[%clk 0:00:16]} 26. R1xe6 {[%clk 0:01:12]}  fxe6 {[%clk 0:00:15]} 27. Rxg7+ {[%clk 0:01:13]}  Kf8 {[%clk 0:00:14]} 28. Rf7+ {[%clk 0:01:14]}  Kxf7 {[%clk 0:00:13]} 29. Qxh7+ {[%clk 0:01:14]}  Kf8 {[%clk 0:00:03]} 30. Qg7# {[%clk 0:01:14]} 1-0


[Site "https://www.chess.com"]

[Event "Titled Tuesday Blitz April 05 Late 2022"]
[White "Tang, Andrew"]
[Black "Li, Ben"]
[WhiteFideId "2059630"]
[BlackFideId "2089980"]
[WhiteElo "2584"]
[BlackElo "2267"]
[Result "0-1"]
[Round "04"]
[TimeControl "180+1"]
[Date "2022.04.05"]
[WhiteClock "0:00:01"]
[BlackClock "0:01:05"]

1. d4 {[%clk 0:02:47]}  d5 {[%clk 0:03:00]} 2. Bf4 {[%clk 0:02:47]}  Nf6 {[%clk 0:03:00]} 3. e3 {[%clk 0:02:48]}  c5 {[%clk 0:03:00]} 4. dxc5 {[%clk 0:02:48]}  Nc6 {[%clk 0:03:01]} 5. Bb5 {[%clk 0:02:47]}  Qa5+ {[%clk 0:03:01]} 6. Nc3 {[%clk 0:02:48]}  a6 {[%clk 0:03:01]} 7. Bxc6+ {[%clk 0:02:25]}  bxc6 {[%clk 0:03:02]} 8. Nf3 {[%clk 0:02:21]}  e6 {[%clk 0:02:53]} 9. a3 {[%clk 0:02:02]}  Qxc5 {[%clk 0:02:51]} 10. O-O {[%clk 0:01:58]}  Be7 {[%clk 0:02:51]} 11. Na4 {[%clk 0:01:53]}  Qa7 {[%clk 0:02:51]} 12. c4 {[%clk 0:01:53]}  O-O {[%clk 0:02:48]} 13. Rc1 {[%clk 0:01:54]}  c5 {[%clk 0:02:22]} 14. Ne5 {[%clk 0:01:11]}  Bb7 {[%clk 0:02:18]} 15. cxd5 {[%clk 0:00:55]}  exd5 {[%clk 0:02:05]} 16. Bg5 {[%clk 0:00:53]}  Rfd8 {[%clk 0:02:02]} 17. Qc2 {[%clk 0:00:49]}  Rac8 {[%clk 0:02:01]} 18. Ng4 {[%clk 0:00:42]}  Nxg4 {[%clk 0:01:46]} 19. Bxe7 {[%clk 0:00:42]}  Re8 {[%clk 0:01:47]} 20. Bd6 {[%clk 0:00:35]}  d4 {[%clk 0:01:39]} 21. Qf5 {[%clk 0:00:31]}  Nf6 {[%clk 0:01:32]} 22. Bxc5 {[%clk 0:00:28]}  Qa8 {[%clk 0:01:26]} 23. Nb6 {[%clk 0:00:25]}  Qb8 {[%clk 0:01:26]} 24. Nxc8 {[%clk 0:00:23]}  Bxc8 {[%clk 0:01:25]} 25. Qf4 {[%clk 0:00:22]}  Qxf4 {[%clk 0:01:23]} 26. exf4 {[%clk 0:00:23]}  d3 {[%clk 0:01:23]} 27. Rfd1 {[%clk 0:00:22]}  Bf5 {[%clk 0:01:23]} 28. Rd2 {[%clk 0:00:20]}  Ne4 {[%clk 0:01:16]} 29. Rxd3 {[%clk 0:00:02]}  Nxc5 {[%clk 0:01:16]} 30. Rd5 {[%clk 0:00:01]}  Nb3 {[%clk 0:01:14]} 31. Re5 {[%clk 0:00:02]}  Rxe5 {[%clk 0:01:07]} 32. Rd1 {[%clk 0:00:01]}  Re8 {[%clk 0:01:05]} 0-1


[Site "https://www.chess.com"]

[Event "Titled Tuesday Blitz April 05 Late 2022"]
[White "Unver, Cumali"]
[Black "Jarocka, Liwia"]
[WhiteFideId "6304940"]
[BlackFideId "21807558"]
[WhiteElo "2013"]
[BlackElo "1896"]
[Result "0-1"]
[Round "04"]
[TimeControl "180+1"]
[Date "2022.04.06"]
[WhiteClock "0:00:01"]
[BlackClock "0:01:30"]

1. e4 {[%clk 0:02:44]}  e5 {[%clk 0:02:58]} 2. Nf3 {[%clk 0:02:43]}  Nc6 {[%clk 0:02:58]} 3. Nc3 {[%clk 0:02:43]}  Nf6 {[%clk 0:02:58]} 4. d4 {[%clk 0:02:26]}  exd4 {[%clk 0:02:58]} 5. Nxd4 {[%clk 0:02:27]}  Bb4 {[%clk 0:02:58]} 6. Nxc6 {[%clk 0:02:27]}  bxc6 {[%clk 0:02:58]} 7. Bd3 {[%clk 0:02:28]}  O-O {[%clk 0:02:57]} 8. O-O {[%clk 0:02:25]}  d5 {[%clk 0:02:56]} 9. exd5 {[%clk 0:02:25]}  cxd5 {[%clk 0:02:53]} 10. h3 {[%clk 0:02:25]}  c6 {[%clk 0:02:54]} 11. Qf3 {[%clk 0:02:18]}  Bd6 {[%clk 0:02:52]} 12. Bg5 {[%clk 0:02:16]}  Be5 {[%clk 0:02:51]} 13. Rae1 {[%clk 0:01:59]}  Re8 {[%clk 0:02:50]} 14. Nd1 {[%clk 0:01:36]}  h6 {[%clk 0:02:48]} 15. Bf4 {[%clk 0:01:21]}  Bxf4 {[%clk 0:02:45]} 16. Qxf4 {[%clk 0:01:22]}  Be6 {[%clk 0:02:43]} 17. b3 {[%clk 0:01:16]}  c5 {[%clk 0:02:40]} 18. Ne3 {[%clk 0:01:15]}  Qc8 {[%clk 0:02:33]} 19. c4 {[%clk 0:00:57]}  d4 {[%clk 0:02:33]} 20. Nf5 {[%clk 0:00:55]}  Bxf5 {[%clk 0:02:32]} 21. Bxf5 {[%clk 0:00:52]}  Qb8 {[%clk 0:02:26]} 22. Rxe8+ {[%clk 0:00:47]}  Qxe8 {[%clk 0:02:25]} 23. Bd3 {[%clk 0:00:42]}  Qe7 {[%clk 0:02:20]} 24. g4 {[%clk 0:00:37]}  Re8 {[%clk 0:02:16]} 25. Kg2 {[%clk 0:00:30]}  Qe5 {[%clk 0:02:15]} 26. Qxe5 {[%clk 0:00:25]}  Rxe5 {[%clk 0:02:15]} 27. Kf3 {[%clk 0:00:19]}  Kf8 {[%clk 0:02:14]} 28. Rb1 {[%clk 0:00:13]}  a5 {[%clk 0:02:09]} 29. a3 {[%clk 0:00:13]}  Re6 {[%clk 0:02:04]} 30. b4 {[%clk 0:00:13]}  axb4 {[%clk 0:02:01]} 31. axb4 {[%clk 0:00:14]}  cxb4 {[%clk 0:02:00]} 32. Rxb4 {[%clk 0:00:15]}  Nd7 {[%clk 0:01:57]} 33. Rb5 {[%clk 0:00:13]}  g6 {[%clk 0:01:54]} 34. Be4 {[%clk 0:00:11]}  Re5 {[%clk 0:01:51]} 35. Bd5 {[%clk 0:00:10]}  Re1 {[%clk 0:01:34]} 36. Rb7 {[%clk 0:00:08]}  Ne5+ {[%clk 0:01:35]} 37. Kg2 {[%clk 0:00:07]}  d3 {[%clk 0:01:35]} 38. Rb2 {[%clk 0:00:01]}  Re2 {[%clk 0:01:30]} 0-1


[Site "https://www.chess.com"]

[Event "Titled Tuesday Blitz April 05 Late 2022"]
[White "Al-Tarboush, Ward"]
[Black "Romero Ruscalleda, Josep"]
[WhiteFideId "7601450"]
[BlackFideId "2231859"]
[WhiteElo "2276"]
[BlackElo "2304"]
[Result "1-0"]
[Round "05"]
[TimeControl "180+1"]
[Date "2022.04.06"]
[WhiteClock "0:01:34"]
[BlackClock "0:00:37"]

1. e4 {[%clk 0:02:52]}  g6 {[%clk 0:03:00]} 2. d4 {[%clk 0:02:52]}  Bg7 {[%clk 0:03:00]} 3. Nc3 {[%clk 0:02:49]}  d6 {[%clk 0:03:01]} 4. Be3 {[%clk 0:02:49]}  a6 {[%clk 0:03:01]} 5. Qd2 {[%clk 0:02:49]}  b5 {[%clk 0:03:01]} 6. Nge2 {[%clk 0:02:45]}  Bb7 {[%clk 0:02:59]} 7. f3 {[%clk 0:02:44]}  Nd7 {[%clk 0:02:57]} 8. O-O-O {[%clk 0:02:20]}  Rc8 {[%clk 0:02:56]} 9. h4 {[%clk 0:02:15]}  h5 {[%clk 0:02:55]} 10. g4 {[%clk 0:02:12]}  c5 {[%clk 0:02:55]} 11. gxh5 {[%clk 0:02:07]}  Rxh5 {[%clk 0:02:54]} 12. Ng3 {[%clk 0:02:07]}  Rh8 {[%clk 0:02:46]} 13. h5 {[%clk 0:02:07]}  cxd4 {[%clk 0:02:20]} 14. Bxd4 {[%clk 0:02:06]}  Ne5 {[%clk 0:02:20]} 15. hxg6 {[%clk 0:02:04]}  fxg6 {[%clk 0:02:08]} 16. Rxh8 {[%clk 0:02:00]}  Bxh8 {[%clk 0:02:08]} 17. Qg2 {[%clk 0:01:48]}  b4 {[%clk 0:01:59]} 18. Nd5 {[%clk 0:01:46]}  Bxd5 {[%clk 0:01:52]} 19. exd5 {[%clk 0:01:44]}  Kf7 {[%clk 0:01:36]} 20. f4 {[%clk 0:01:42]}  Ng4 {[%clk 0:01:24]} 21. Bxh8 {[%clk 0:01:41]}  Ne3 {[%clk 0:01:24]} 22. Qe4 {[%clk 0:01:35]}  Nxd1 {[%clk 0:01:12]} 23. Qe6+ {[%clk 0:01:34]}  Kf8 {[%clk 0:01:10]} 24. Qxg6 {[%clk 0:01:35]}  Nf6 {[%clk 0:00:40]} 25. Bg7+ {[%clk 0:01:34]}  Kg8 {[%clk 0:00:37]} 26. Bh6+ {[%clk 0:01:34]} 1-0


[Site "https://www.chess.com"]

[Event "Titled Tuesday Blitz April 05 Late 2022"]
[White "Ambartsumova, Karina"]
[Black "Ilyasli, Ughur"]
[WhiteFideId "4166299"]
[BlackFideId "13416197"]
[WhiteElo "2586"]
[BlackElo "2409"]
[Result "0-1"]
[Round "05"]
[TimeControl "180+1"]
[Date "2022.04.06"]
[WhiteClock "0:00:06"]
[BlackClock "0:00:11"]

1. d4 {[%clk 0:03:00]}  Nf6 {[%clk 0:02:59]} 2. Nf3 {[%clk 0:03:00]}  g6 {[%clk 0:02:59]} 3. g3 {[%clk 0:03:00]}  Bg7 {[%clk 0:02:59]} 4. Bg2 {[%clk 0:03:00]}  O-O {[%clk 0:02:58]} 5. O-O {[%clk 0:03:00]}  d5 {[%clk 0:02:58]} 6. c4 {[%clk 0:03:00]}  dxc4 {[%clk 0:02:59]} 7. Ne5 {[%clk 0:02:50]}  c5 {[%clk 0:02:40]} 8. dxc5 {[%clk 0:02:48]}  Qc7 {[%clk 0:02:37]} 9. Nxc4 {[%clk 0:02:46]}  Qxc5 {[%clk 0:02:37]} 10. Nba3 {[%clk 0:02:31]}  Nc6 {[%clk 0:02:36]} 11. Be3 {[%clk 0:02:25]}  Qh5 {[%clk 0:02:35]} 12. f3 {[%clk 0:02:11]}  Bh3 {[%clk 0:01:48]} 13. g4 {[%clk 0:01:44]}  Nxg4 {[%clk 0:01:30]} 14. fxg4 {[%clk 0:01:45]}  Qxg4 {[%clk 0:01:30]} 15. Rf2 {[%clk 0:01:44]}  b5 {[%clk 0:01:25]} 16. Qd5 {[%clk 0:01:19]}  bxc4 {[%clk 0:01:16]} 17. Qxc6 {[%clk 0:01:19]}  Bxb2 {[%clk 0:01:15]} 18. Rd1 {[%clk 0:01:09]}  Bxa3 {[%clk 0:01:05]} 19. Rd4 {[%clk 0:01:05]}  Bxg2 {[%clk 0:01:04]} 20. Rxg2 {[%clk 0:00:54]}  Qf5 {[%clk 0:00:38]} 21. Qxc4 {[%clk 0:00:54]}  Rac8 {[%clk 0:00:37]} 22. Qd3 {[%clk 0:00:53]}  Qxd3 {[%clk 0:00:26]} 23. Rxd3 {[%clk 0:00:54]}  Bc5 {[%clk 0:00:19]} 24. Rg5 {[%clk 0:00:54]}  Bxe3+ {[%clk 0:00:19]} 25. Rxe3 {[%clk 0:00:54]}  e6 {[%clk 0:00:19]} 26. Ra5 {[%clk 0:00:54]}  Rc7 {[%clk 0:00:18]} 27. Rea3 {[%clk 0:00:55]}  Ra8 {[%clk 0:00:18]} 28. Kf2 {[%clk 0:00:53]}  h5 {[%clk 0:00:18]} 29. Kf3 {[%clk 0:00:53]}  Kg7 {[%clk 0:00:18]} 30. e4 {[%clk 0:00:53]}  Kf6 {[%clk 0:00:18]} 31. e5+ {[%clk 0:00:54]}  Kg7 {[%clk 0:00:18]} 32. h4 {[%clk 0:00:51]}  Rc4 {[%clk 0:00:16]} 33. R5a4 {[%clk 0:00:39]}  Rac8 {[%clk 0:00:15]} 34. Rxc4 {[%clk 0:00:27]}  Rxc4 {[%clk 0:00:15]} 35. Rxa7 {[%clk 0:00:28]}  Rxh4 {[%clk 0:00:15]} 36. a4 {[%clk 0:00:28]}  Rh3+ {[%clk 0:00:15]} 37. Kg2 {[%clk 0:00:20]}  Ra3 {[%clk 0:00:15]} 38. a5 {[%clk 0:00:20]}  g5 {[%clk 0:00:15]} 39. a6 {[%clk 0:00:19]}  Kg6 {[%clk 0:00:16]} 40. Kh2 {[%clk 0:00:19]}  Kf5 {[%clk 0:00:15]} 41. Rxf7+ {[%clk 0:00:18]}  Kxe5 {[%clk 0:00:15]} 42. a7 {[%clk 0:00:18]}  h4 {[%clk 0:00:14]} 43. Rb7 {[%clk 0:00:16]}  g4 {[%clk 0:00:12]} 44. Rb5+ {[%clk 0:00:15]}  Kf6 {[%clk 0:00:12]} 45. Rb7 {[%clk 0:00:14]}  Ra2+ {[%clk 0:00:12]} 46. Kg1 {[%clk 0:00:14]}  h3 {[%clk 0:00:11]} 47. Kh1 {[%clk 0:00:09]}  g3 {[%clk 0:00:11]} 48. Rb1 {[%clk 0:00:06]}  Rxa7 {[%clk 0:00:11]} 0-1


[Site "https://www.chess.com"]

[Event "Titled Tuesday Blitz April 05 Late 2022"]
[White "Andreikin, Dmitry"]
[Black "Jumabayev, Rinat"]
[WhiteFideId "4158814"]
[BlackFideId "13702661"]
[WhiteElo "2736"]
[BlackElo "2561"]
[Result "1/2-1/2"]
[Round "05"]
[TimeControl "180+1"]
[Date "2022.04.05"]
[WhiteClock "0:00:10"]
[BlackClock "0:00:07"]

1. d4 {[%clk 0:03:00]}  d5 {[%clk 0:02:59]} 2. c4 {[%clk 0:03:01]}  c6 {[%clk 0:03:00]} 3. Nf3 {[%clk 0:03:00]}  Nf6 {[%clk 0:03:00]} 4. Qc2 {[%clk 0:03:00]}  g6 {[%clk 0:02:48]} 5. Bf4 {[%clk 0:02:59]}  Bg7 {[%clk 0:02:43]} 6. e3 {[%clk 0:02:59]}  O-O {[%clk 0:02:43]} 7. Nc3 {[%clk 0:02:59]}  c5 {[%clk 0:02:37]} 8. dxc5 {[%clk 0:02:58]}  Na6 {[%clk 0:02:37]} 9. Rd1 {[%clk 0:02:53]}  Bf5 {[%clk 0:02:29]} 10. Qc1 {[%clk 0:02:52]}  Nxc5 {[%clk 0:02:25]} 11. cxd5 {[%clk 0:02:50]}  Rc8 {[%clk 0:02:22]} 12. Be2 {[%clk 0:02:40]}  Nxd5 {[%clk 0:02:00]} 13. Be5 {[%clk 0:02:40]}  Ne4 {[%clk 0:01:40]} 14. Bxg7 {[%clk 0:02:32]}  Kxg7 {[%clk 0:01:40]} 15. Qa1 {[%clk 0:02:04]}  Nexc3 {[%clk 0:01:04]} 16. bxc3 {[%clk 0:02:04]}  Kg8 {[%clk 0:01:05]} 17. O-O {[%clk 0:01:37]}  Qa5 {[%clk 0:01:03]} 18. c4 {[%clk 0:01:36]}  Nc3 {[%clk 0:01:02]} 19. Rd2 {[%clk 0:01:36]}  Nxe2+ {[%clk 0:00:59]} 20. Rxe2 {[%clk 0:01:37]}  Bd3 {[%clk 0:00:59]} 21. Rb2 {[%clk 0:01:26]}  Bxf1 {[%clk 0:00:57]} 22. Qxf1 {[%clk 0:01:27]}  Rc7 {[%clk 0:00:53]} 23. h4 {[%clk 0:01:26]}  Rfc8 {[%clk 0:00:53]} 24. Rb5 {[%clk 0:01:26]}  Qxa2 {[%clk 0:00:52]} 25. Ne5 {[%clk 0:01:26]}  a6 {[%clk 0:00:48]} 26. Rd5 {[%clk 0:01:22]}  f6 {[%clk 0:00:44]} 27. Nd3 {[%clk 0:01:21]}  Qxc4 {[%clk 0:00:39]} 28. Rd4 {[%clk 0:01:20]}  Qb5 {[%clk 0:00:33]} 29. Qd1 {[%clk 0:01:09]}  e5 {[%clk 0:00:28]} 30. Rd6 {[%clk 0:01:02]}  Rd7 {[%clk 0:00:15]} 31. Nb4 {[%clk 0:00:46]}  Rxd6 {[%clk 0:00:11]} 32. Qxd6 {[%clk 0:00:47]}  Qc4 {[%clk 0:00:08]} 33. Nd5 {[%clk 0:00:44]}  Rf8 {[%clk 0:00:08]} 34. Nxf6+ {[%clk 0:00:37]}  Rxf6 {[%clk 0:00:07]} 35. Qxf6 {[%clk 0:00:36]}  Qc1+ {[%clk 0:00:06]} 36. Kh2 {[%clk 0:00:36]}  Qc7 {[%clk 0:00:07]} 37. g4 {[%clk 0:00:24]}  a5 {[%clk 0:00:06]} 38. h5 {[%clk 0:00:23]}  gxh5 {[%clk 0:00:05]} 39. gxh5 {[%clk 0:00:24]}  e4+ {[%clk 0:00:05]} 40. Kh3 {[%clk 0:00:21]}  a4 {[%clk 0:00:04]} 41. Qe6+ {[%clk 0:00:21]}  Kf8 {[%clk 0:00:03]} 42. Qxe4 {[%clk 0:00:15]}  Qd7+ {[%clk 0:00:02]} 43. Kh2 {[%clk 0:00:13]}  b5 {[%clk 0:00:03]} 44. f4 {[%clk 0:00:10]}  Qd6 {[%clk 0:00:03]} 45. Qxh7 {[%clk 0:00:09]}  a3 {[%clk 0:00:03]} 46. h6 {[%clk 0:00:09]}  a2 {[%clk 0:00:02]} 47. Qg7+ {[%clk 0:00:09]}  Ke8 {[%clk 0:00:03]} 48. h7 {[%clk 0:00:07]}  Qd2+ {[%clk 0:00:01]} 49. Kh1 {[%clk 0:00:06]}  Qd1+ {[%clk 0:00:01]} 50. Kg2 {[%clk 0:00:06]}  Qe2+ {[%clk 0:00:02]} 51. Kg3 {[%clk 0:00:06]}  Qxe3+ {[%clk 0:00:02]} 52. Kh4 {[%clk 0:00:05]}  Qf2+ {[%clk 0:00:02]} 53. Kh3 {[%clk 0:00:02]}  Qf3+ {[%clk 0:00:02]} 54. Kh2 {[%clk 0:00:02]}  Qh5+ {[%clk 0:00:03]} 55. Kg3 {[%clk 0:00:02]}  Qxh7 {[%clk 0:00:03]} 56. Qxh7 {[%clk 0:00:02]}  a1=Q {[%clk 0:00:04]} 57. Qh5+ {[%clk 0:00:02]}  Ke7 {[%clk 0:00:04]} 58. Qxb5 {[%clk 0:00:02]}  Qg1+ {[%clk 0:00:04]} 59. Kf3 {[%clk 0:00:02]}  Qd1+ {[%clk 0:00:04]} 60. Ke4 {[%clk 0:00:01]}  Qc2+ {[%clk 0:00:03]} 61. Ke3 {[%clk 0:00:01]}  Qc3+ {[%clk 0:00:03]} 62. Ke2 {[%clk 0:00:02]}  Qc2+ {[%clk 0:00:03]} 63. Ke3 {[%clk 0:00:02]}  Qc3+ {[%clk 0:00:04]} 64. Qd3 {[%clk 0:00:03]}  Qxd3+ {[%clk 0:00:04]} 65. Kxd3 {[%clk 0:00:03]}  Ke6 {[%clk 0:00:04]} 66. Ke4 {[%clk 0:00:04]}  Kf6 {[%clk 0:00:04]} 67. f5 {[%clk 0:00:05]}  Kf7 {[%clk 0:00:04]} 68. Ke5 {[%clk 0:00:06]}  Ke7 {[%clk 0:00:05]} 69. f6+ {[%clk 0:00:07]}  Kf7 {[%clk 0:00:06]} 70. Kf5 {[%clk 0:00:07]}  Kf8 {[%clk 0:00:06]} 71. Kg6 {[%clk 0:00:08]}  Kg8 {[%clk 0:00:07]} 72. f7+ {[%clk 0:00:09]}  Kf8 {[%clk 0:00:07]} 73. Kf6 {[%clk 0:00:10]} 1/2-1/2


[Site "https://www.chess.com"]

[Event "Titled Tuesday Blitz April 05 Late 2022"]
[White "Andrews, Todd"]
[Black "Silvestre, Christian"]
[WhiteFideId "2012456"]
[BlackFideId "30956269"]
[WhiteElo "2291"]
[BlackElo "2396"]
[Result "1-0"]
[Round "05"]
[TimeControl "180+1"]
[Date "2022.04.06"]
[WhiteClock "0:01:07"]
[BlackClock "0:01:36"]

1. e4 {[%clk 0:02:57]}  c6 {[%clk 0:02:58]} 2. d4 {[%clk 0:02:57]}  d5 {[%clk 0:02:58]} 3. exd5 {[%clk 0:02:57]}  cxd5 {[%clk 0:02:58]} 4. c4 {[%clk 0:02:58]}  dxc4 {[%clk 0:02:58]} 5. Bxc4 {[%clk 0:02:57]}  Qc7 {[%clk 0:02:57]} 6. Bb3 {[%clk 0:02:32]}  Bg4 {[%clk 0:02:54]} 7. f3 {[%clk 0:02:22]}  Bf5 {[%clk 0:02:47]} 8. Nc3 {[%clk 0:02:22]}  e6 {[%clk 0:02:46]} 9. Be3 {[%clk 0:02:14]}  a6 {[%clk 0:02:45]} 10. Rc1 {[%clk 0:02:13]}  Nc6 {[%clk 0:02:43]} 11. d5 {[%clk 0:01:56]}  Qe5 {[%clk 0:02:31]} 12. Qe2 {[%clk 0:01:55]}  exd5 {[%clk 0:02:24]} 13. Nxd5 {[%clk 0:01:52]}  O-O-O {[%clk 0:02:01]} 14. Rxc6+ {[%clk 0:01:18]}  bxc6 {[%clk 0:01:58]} 15. Qxa6+ {[%clk 0:01:18]}  Kd7 {[%clk 0:01:55]} 16. Qb7+ {[%clk 0:01:19]}  Ke8 {[%clk 0:01:54]} 17. Nc7+ {[%clk 0:01:14]}  Kd7 {[%clk 0:01:51]} 18. Nb5+ {[%clk 0:01:09]}  Ke8 {[%clk 0:01:36]} 19. Bxf7# {[%clk 0:01:07]} 1-0


[Site "https://www.chess.com"]